[Event "Titled Tuesday Blitz October 19 2021"]
[White "Matsenko, Andrei"]
[Black "Ovetchkin, Roman"]
[WhiteFideId "24146501"]
[BlackFideId "4119991"]
[WhiteElo "2179"]
[BlackElo "2432"]
[Result "1-0"]
[Round "08"]
[TimeControl "180+1"]
[Date "2021.10.19"]
[WhiteClock "0:02:54"]
[BlackClock "0:01:29"]

1. Nf3 {[%clk 0:03:00]}  Nf6 {[%clk 0:02:59]} 2. b3 {[%clk 0:03:01]}  g6 {[%clk 0:02:59]} 3. Bb2 {[%clk 0:03:02]}  Bg7 {[%clk 0:03:00]} 4. g3 {[%clk 0:03:02]}  O-O {[%clk 0:03:00]} 5. Bg2 {[%clk 0:03:03]}  c5 {[%clk 0:03:00]} 6. c4 {[%clk 0:03:03]}  Nc6 {[%clk 0:02:59]} 7. O-O {[%clk 0:03:03]}  d6 {[%clk 0:02:55]} 8. d4 {[%clk 0:03:03]}  cxd4 {[%clk 0:02:55]} 9. Nxd4 {[%clk 0:03:04]}  Bd7 {[%clk 0:02:55]} 10. Nc3 {[%clk 0:03:04]}  Nxd4 {[%clk 0:02:34]} 11. Qxd4 {[%clk 0:03:05]}  Bc6 {[%clk 0:02:32]} 12. Nd5 {[%clk 0:02:59]}  Bxd5 {[%clk 0:02:09]} 13. Bxd5 {[%clk 0:02:58]}  Nh5 {[%clk 0:01:55]} 14. Qd2 {[%clk 0:02:58]}  Bxb2 {[%clk 0:01:52]} 15. Qxb2 {[%clk 0:02:59]}  Rb8 {[%clk 0:01:53]} 16. Rad1 {[%clk 0:02:57]}  Qc7 {[%clk 0:01:50]} 17. Rd3 {[%clk 0:02:55]}  b5 {[%clk 0:01:49]} 18. cxb5 {[%clk 0:02:53]}  Rxb5 {[%clk 0:01:48]} 19. Rc1 {[%clk 0:02:54]}  Rc5 {[%clk 0:01:44]} 20. Rdc3 {[%clk 0:02:55]}  Rxc3 {[%clk 0:01:36]} 21. Rxc3 {[%clk 0:02:55]}  Qa5 {[%clk 0:01:34]} 22. Bf3 {[%clk 0:02:56]}  Nf6 {[%clk 0:01:33]} 23. b4 {[%clk 0:02:56]}  Rb8 {[%clk 0:01:29]} 24. Rc8+ {[%clk 0:02:54]} 1-0


[Site "https://www.chess.com"]

[Event "Titled Tuesday Blitz October 19 2021"]
[White "Ozen, Bahadir"]
[Black "Timofeev, Artyom"]
[WhiteFideId "6337058"]
[BlackFideId "4140419"]
[WhiteElo "2503"]
[BlackElo "2591"]
[Result "1-0"]
[Round "08"]
[TimeControl "180+1"]
[Date "2021.10.19"]
[WhiteClock "0:00:52"]
[BlackClock "0:00:22"]

1. Nf3 {[%clk 0:03:00]}  Nf6 {[%clk 0:02:58]} 2. e3 {[%clk 0:03:01]}  g6 {[%clk 0:02:58]} 3. Be2 {[%clk 0:03:00]}  Bg7 {[%clk 0:02:58]} 4. O-O {[%clk 0:03:01]}  O-O {[%clk 0:02:58]} 5. d4 {[%clk 0:03:02]}  b6 {[%clk 0:02:58]} 6. b3 {[%clk 0:03:01]}  Bb7 {[%clk 0:02:58]} 7. Bb2 {[%clk 0:03:02]}  a5 {[%clk 0:02:56]} 8. a3 {[%clk 0:02:55]}  a4 {[%clk 0:02:54]} 9. b4 {[%clk 0:02:53]}  d5 {[%clk 0:02:54]} 10. Nbd2 {[%clk 0:02:51]}  Nbd7 {[%clk 0:02:49]} 11. c4 {[%clk 0:02:51]}  dxc4 {[%clk 0:02:49]} 12. Bxc4 {[%clk 0:02:49]}  c6 {[%clk 0:02:42]} 13. Rc1 {[%clk 0:02:48]}  b5 {[%clk 0:02:40]} 14. Ba2 {[%clk 0:02:47]}  Nb6 {[%clk 0:02:35]} 15. e4 {[%clk 0:02:47]}  e6 {[%clk 0:02:35]} 16. Qe2 {[%clk 0:02:46]}  Qe7 {[%clk 0:02:34]} 17. Rfd1 {[%clk 0:02:47]}  Rfd8 {[%clk 0:02:34]} 18. h3 {[%clk 0:02:47]}  Rac8 {[%clk 0:02:31]} 19. Ba1 {[%clk 0:02:47]}  Ne8 {[%clk 0:02:26]} 20. e5 {[%clk 0:02:43]}  Nc7 {[%clk 0:02:16]} 21. Ne4 {[%clk 0:02:43]}  Ncd5 {[%clk 0:02:16]} 22. Nc5 {[%clk 0:02:43]}  Ba8 {[%clk 0:02:14]} 23. Re1 {[%clk 0:02:43]}  Nd7 {[%clk 0:02:14]} 24. Ne4 {[%clk 0:02:40]}  N7b6 {[%clk 0:02:14]} 25. g3 {[%clk 0:02:39]}  Nd7 {[%clk 0:02:10]} 26. h4 {[%clk 0:02:38]}  h6 {[%clk 0:02:10]} 27. Kg2 {[%clk 0:02:38]}  Rb8 {[%clk 0:02:05]} 28. Bb1 {[%clk 0:02:37]}  c5 {[%clk 0:02:01]} 29. dxc5 {[%clk 0:02:34]}  Rbc8 {[%clk 0:02:00]} 30. Nd6 {[%clk 0:02:32]}  Rb8 {[%clk 0:01:52]} 31. Be4 {[%clk 0:02:32]}  Bc6 {[%clk 0:01:49]} 32. Kg1 {[%clk 0:02:28]}  Ba8 {[%clk 0:01:40]} 33. Bb2 {[%clk 0:02:18]}  Nc7 {[%clk 0:01:35]} 34. Bxa8 {[%clk 0:02:17]}  Rxa8 {[%clk 0:01:34]} 35. Nxb5 {[%clk 0:02:16]}  Nxb5 {[%clk 0:01:29]} 36. Qxb5 {[%clk 0:02:17]}  Nb8 {[%clk 0:01:29]} 37. Rcd1 {[%clk 0:02:17]}  Rc8 {[%clk 0:01:26]} 38. Rd6 {[%clk 0:02:16]}  Ra7 {[%clk 0:01:27]} 39. Red1 {[%clk 0:02:16]}  Rac7 {[%clk 0:01:27]} 40. Qxa4 {[%clk 0:02:16]}  Nc6 {[%clk 0:01:27]} 41. Qc2 {[%clk 0:02:09]}  Rb8 {[%clk 0:01:25]} 42. Qe4 {[%clk 0:02:09]}  Qe8 {[%clk 0:01:25]} 43. Kg2 {[%clk 0:02:08]}  Ne7 {[%clk 0:01:25]} 44. Nd4 {[%clk 0:01:59]}  Nd5 {[%clk 0:01:22]} 45. h5 {[%clk 0:01:52]}  gxh5 {[%clk 0:01:20]} 46. Rh1 {[%clk 0:01:51]}  Bf8 {[%clk 0:01:18]} 47. Rxh5 {[%clk 0:01:50]}  Nxb4 {[%clk 0:01:00]} 48. Qg4+ {[%clk 0:01:47]}  Kh7 {[%clk 0:01:00]} 49. axb4 {[%clk 0:01:45]}  Rxb4 {[%clk 0:01:00]} 50. Qe4+ {[%clk 0:01:34]}  Kg8 {[%clk 0:00:59]} 51. Bc1 {[%clk 0:01:33]}  f5 {[%clk 0:00:45]} 52. Qf3 {[%clk 0:01:17]}  Bxd6 {[%clk 0:00:40]} 53. exd6 {[%clk 0:01:17]}  Rxc5 {[%clk 0:00:40]} 54. Ba3 {[%clk 0:01:04]}  Rxd4 {[%clk 0:00:37]} 55. Bxc5 {[%clk 0:01:04]}  Rd5 {[%clk 0:00:36]} 56. Ba3 {[%clk 0:01:03]}  Kh7 {[%clk 0:00:31]} 57. Bc1 {[%clk 0:01:01]}  Rxd6 {[%clk 0:00:27]} 58. Rxh6+ {[%clk 0:01:01]}  Kg7 {[%clk 0:00:27]} 59. Rh1 {[%clk 0:00:58]}  Qc6 {[%clk 0:00:27]} 60. Bb2+ {[%clk 0:00:57]}  Kg6 {[%clk 0:00:27]} 61. Qxc6 {[%clk 0:00:56]}  Rxc6 {[%clk 0:00:27]} 62. Rc1 {[%clk 0:00:56]}  Rb6 {[%clk 0:00:27]} 63. Bd4 {[%clk 0:00:56]}  Rb4 {[%clk 0:00:27]} 64. Be5 {[%clk 0:00:57]}  Re4 {[%clk 0:00:27]} 65. Rc5 {[%clk 0:00:57]}  Kg5 {[%clk 0:00:26]} 66. f3 {[%clk 0:00:57]}  Re2+ {[%clk 0:00:26]} 67. Kf1 {[%clk 0:00:57]}  Ra2 {[%clk 0:00:26]} 68. Rc6 {[%clk 0:00:57]}  Ra3 {[%clk 0:00:25]} 69. Kg2 {[%clk 0:00:53]}  Ra2+ {[%clk 0:00:25]} 70. Kh3 {[%clk 0:00:54]}  Ra3 {[%clk 0:00:25]} 71. Rxe6 {[%clk 0:00:51]}  Rxf3 {[%clk 0:00:22]} 72. Bf4+ {[%clk 0:00:52]} 1-0


[Site "https://www.chess.com"]

[Event "Titled Tuesday Blitz October 19 2021"]
[White "Papp, Levente"]
[Black "Lazavik, Denis"]
[WhiteFideId "751243"]
[BlackFideId "13515110"]
[WhiteElo "2308"]
[BlackElo "2436"]
[Result "0-1"]
[Round "08"]
[TimeControl "180+1"]
[Date "2021.10.19"]
[WhiteClock "0:00:05"]
[BlackClock "0:00:05"]

1. c4 {[%clk 0:03:00]}  e6 {[%clk 0:02:59]} 2. Nf3 {[%clk 0:03:00]}  d5 {[%clk 0:02:59]} 3. g3 {[%clk 0:03:01]}  Nf6 {[%clk 0:02:59]} 4. Bg2 {[%clk 0:03:01]}  dxc4 {[%clk 0:02:59]} 5. Na3 {[%clk 0:03:01]}  Bxa3 {[%clk 0:02:52]} 6. bxa3 {[%clk 0:03:02]}  O-O {[%clk 0:02:52]} 7. O-O {[%clk 0:03:02]}  Nbd7 {[%clk 0:02:42]} 8. Qc2 {[%clk 0:02:54]}  c5 {[%clk 0:02:40]} 9. Bb2 {[%clk 0:02:51]}  Qe7 {[%clk 0:02:35]} 10. Qxc4 {[%clk 0:02:45]}  b6 {[%clk 0:02:35]} 11. Nd4 {[%clk 0:02:19]}  Ne5 {[%clk 0:02:32]} 12. Qc2 {[%clk 0:02:19]}  Ba6 {[%clk 0:00:43]} 13. Nb3 {[%clk 0:01:54]}  Ng6 {[%clk 0:00:40]} 14. Bxa8 {[%clk 0:01:46]}  Rxa8 {[%clk 0:00:41]} 15. d3 {[%clk 0:01:45]}  e5 {[%clk 0:00:41]} 16. Nd2 {[%clk 0:01:38]}  Qe6 {[%clk 0:00:38]} 17. Ne4 {[%clk 0:01:06]}  h5 {[%clk 0:00:28]} 18. Nxf6+ {[%clk 0:01:05]}  Qxf6 {[%clk 0:00:29]} 19. Qa4 {[%clk 0:00:57]}  Bb7 {[%clk 0:00:28]} 20. Qd7 {[%clk 0:00:53]}  Bc6 {[%clk 0:00:18]} 21. Qh3 {[%clk 0:00:48]}  h4 {[%clk 0:00:17]} 22. Rac1 {[%clk 0:00:39]}  Nf4 {[%clk 0:00:11]} 23. Qg4 {[%clk 0:00:23]}  Qf5 {[%clk 0:00:08]} 24. f3 {[%clk 0:00:23]}  Nxe2+ {[%clk 0:00:07]} 25. Kf2 {[%clk 0:00:23]}  Qxg4 {[%clk 0:00:05]} 26. fxg4 {[%clk 0:00:24]}  Nxc1 {[%clk 0:00:05]} 27. Rxc1 {[%clk 0:00:24]}  hxg3+ {[%clk 0:00:05]} 28. hxg3 {[%clk 0:00:20]}  f6 {[%clk 0:00:06]} 29. Ke3 {[%clk 0:00:17]}  Rd8 {[%clk 0:00:06]} 30. Rc3 {[%clk 0:00:12]}  Kf7 {[%clk 0:00:06]} 31. a4 {[%clk 0:00:11]}  Bxa4 {[%clk 0:00:05]} 32. Ra3 {[%clk 0:00:11]}  b5 {[%clk 0:00:06]} 33. Rc3 {[%clk 0:00:12]}  Rd5 {[%clk 0:00:05]} 34. Ke4 {[%clk 0:00:08]}  Ke6 {[%clk 0:00:06]} 35. Ke3 {[%clk 0:00:07]}  b4 {[%clk 0:00:06]} 36. Rc1 {[%clk 0:00:07]}  Bb5 {[%clk 0:00:06]} 37. Rd1 {[%clk 0:00:06]}  a5 {[%clk 0:00:07]} 38. a4 {[%clk 0:00:05]}  Bxa4 {[%clk 0:00:07]} 39. Ra1 {[%clk 0:00:06]}  Bb5 {[%clk 0:00:08]} 40. Rxa5 {[%clk 0:00:06]}  Rxd3+ {[%clk 0:00:08]} 41. Ke4 {[%clk 0:00:07]}  Rb3 {[%clk 0:00:05]} 42. Rxb5 {[%clk 0:00:06]}  Rxb2 {[%clk 0:00:05]} 43. Rb6+ {[%clk 0:00:07]}  Kf7 {[%clk 0:00:05]} 44. g5 {[%clk 0:00:05]}  Re2+ {[%clk 0:00:05]} 45. Kf5 {[%clk 0:00:06]}  Rf2+ {[%clk 0:00:05]} 46. Kg4 {[%clk 0:00:06]}  Kg6 {[%clk 0:00:05]} 47. Rc6 {[%clk 0:00:06]}  b3 {[%clk 0:00:04]} 48. gxf6 {[%clk 0:00:05]}  gxf6 {[%clk 0:00:04]} 49. Rxc5 {[%clk 0:00:05]}  b2 {[%clk 0:00:04]} 50. Rb5 {[%clk 0:00:05]}  e4 {[%clk 0:00:04]} 51. Rb3 {[%clk 0:00:05]}  e3 {[%clk 0:00:05]} 0-1


[Site "https://www.chess.com"]

[Event "Titled Tuesday Blitz October 19 2021"]
[White "Perez Gormaz, Matias"]
[Black "Svane, Rasmus"]
[WhiteFideId "3406342"]
[BlackFideId "4657101"]
[WhiteElo "2352"]
[BlackElo "2643"]
[Result "0-1"]
[Round "08"]
[TimeControl "180+1"]
[Date "2021.10.19"]
[WhiteClock "0:00:01"]
[BlackClock "0:00:38"]

1. e4 {[%clk 0:03:00]}  c6 {[%clk 0:03:00]} 2. d4 {[%clk 0:03:00]}  d5 {[%clk 0:03:00]} 3. e5 {[%clk 0:03:00]}  Bf5 {[%clk 0:03:00]} 4. h4 {[%clk 0:03:01]}  h5 {[%clk 0:03:00]} 5. Bd3 {[%clk 0:03:01]}  Bxd3 {[%clk 0:03:01]} 6. Qxd3 {[%clk 0:03:02]}  Qa5+ {[%clk 0:03:01]} 7. Bd2 {[%clk 0:02:57]}  Qa6 {[%clk 0:03:01]} 8. e6 {[%clk 0:02:58]}  Qxd3 {[%clk 0:03:02]} 9. exf7+ {[%clk 0:02:59]}  Kxf7 {[%clk 0:03:02]} 10. cxd3 {[%clk 0:02:59]}  Nd7 {[%clk 0:03:03]} 11. Nh3 {[%clk 0:02:58]}  e5 {[%clk 0:03:02]} 12. Ng5+ {[%clk 0:02:43]}  Kg6 {[%clk 0:03:03]} 13. Be3 {[%clk 0:02:30]}  Nh6 {[%clk 0:03:01]} 14. Nd2 {[%clk 0:02:22]}  Bb4 {[%clk 0:02:59]} 15. O-O-O {[%clk 0:02:19]}  Bxd2+ {[%clk 0:02:56]} 16. Rxd2 {[%clk 0:02:11]}  Nf5 {[%clk 0:02:57]} 17. dxe5 {[%clk 0:02:10]}  Nxe5 {[%clk 0:02:57]} 18. Bf4 {[%clk 0:02:08]}  Rae8 {[%clk 0:02:57]} 19. b3 {[%clk 0:01:48]}  Rhf8 {[%clk 0:02:57]} 20. d4 {[%clk 0:01:38]}  Ng4 {[%clk 0:02:47]} 21. g3 {[%clk 0:01:36]}  Re7 {[%clk 0:02:35]} 22. f3 {[%clk 0:01:25]}  Nf6 {[%clk 0:02:35]} 23. Be5 {[%clk 0:01:21]}  Nd7 {[%clk 0:02:20]} 24. g4 {[%clk 0:01:19]}  Nh6 {[%clk 0:02:17]} 25. Bd6 {[%clk 0:01:14]}  Ree8 {[%clk 0:01:59]} 26. Bxf8 {[%clk 0:01:14]}  Rxf8 {[%clk 0:01:59]} 27. Rg1 {[%clk 0:01:13]}  hxg4 {[%clk 0:01:55]} 28. fxg4 {[%clk 0:01:13]}  Rf4 {[%clk 0:01:48]} 29. Ne6 {[%clk 0:00:56]}  Re4 {[%clk 0:01:48]} 30. h5+ {[%clk 0:00:51]}  Kf6 {[%clk 0:01:41]} 31. Nd8 {[%clk 0:00:50]}  Nxg4 {[%clk 0:01:38]} 32. Nxb7 {[%clk 0:00:49]}  Kg5 {[%clk 0:01:30]} 33. Nd8 {[%clk 0:00:45]}  Nb8 {[%clk 0:01:19]} 34. Rc2 {[%clk 0:00:39]}  Rxd4 {[%clk 0:01:17]} 35. Nxc6 {[%clk 0:00:37]}  Nxc6 {[%clk 0:01:18]} 36. Rxc6 {[%clk 0:00:38]}  Kxh5 {[%clk 0:01:19]} 37. Rc7 {[%clk 0:00:34]}  g5 {[%clk 0:01:19]} 38. Rxa7 {[%clk 0:00:27]}  Ne3 {[%clk 0:01:20]} 39. Ra4 {[%clk 0:00:10]}  Rd3 {[%clk 0:01:18]} 40. Ra8 {[%clk 0:00:07]}  g4 {[%clk 0:01:00]} 41. Rg8 {[%clk 0:00:08]}  Kh4 {[%clk 0:01:00]} 42. Rh8+ {[%clk 0:00:07]}  Kg5 {[%clk 0:00:59]} 43. Rg8+ {[%clk 0:00:07]}  Kf4 {[%clk 0:01:00]} 44. Kb2 {[%clk 0:00:03]}  d4 {[%clk 0:00:59]} 45. a4 {[%clk 0:00:03]}  Rd2+ {[%clk 0:01:00]} 46. Kc1 {[%clk 0:00:02]}  Rc2+ {[%clk 0:00:57]} 47. Kb1 {[%clk 0:00:01]}  d3 {[%clk 0:00:58]} 48. Rf8+ {[%clk 0:00:02]}  Ke4 {[%clk 0:00:57]} 49. Re8+ {[%clk 0:00:02]}  Kf3 {[%clk 0:00:57]} 50. Rxe3+ {[%clk 0:00:02]}  Kxe3 {[%clk 0:00:58]} 51. Rxg4 {[%clk 0:00:03]}  Rf2 {[%clk 0:00:42]} 52. Rg1 {[%clk 0:00:01]}  Ke2 {[%clk 0:00:38]} 0-1


[Site "https://www.chess.com"]

[Event "Titled Tuesday Blitz October 19 2021"]
[White "Praggnanandhaa R"]
[Black "Jobava, Baadur"]
[WhiteFideId "25059530"]
[BlackFideId "13601520"]
[WhiteElo "2599"]
[BlackElo "2731"]
[Result "0-1"]
[Round "08"]
[TimeControl "180+1"]
[Date "2021.10.19"]
[WhiteClock "0:00:03"]
[BlackClock "0:01:00"]

1. Nf3 {[%clk 0:03:00]}  d5 {[%clk 0:02:59]} 2. e3 {[%clk 0:03:00]}  c6 {[%clk 0:03:00]} 3. c4 {[%clk 0:03:00]}  Nf6 {[%clk 0:03:01]} 4. d4 {[%clk 0:03:00]}  Bf5 {[%clk 0:03:01]} 5. Nc3 {[%clk 0:03:00]}  e6 {[%clk 0:03:02]} 6. Nh4 {[%clk 0:03:00]}  g6 {[%clk 0:03:02]} 7. Qb3 {[%clk 0:02:58]}  Qe7 {[%clk 0:03:03]} 8. g3 {[%clk 0:02:52]}  Qb4 {[%clk 0:03:01]} 9. Nxf5 {[%clk 0:02:49]}  gxf5 {[%clk 0:03:00]} 10. f3 {[%clk 0:02:49]}  Nbd7 {[%clk 0:02:57]} 11. Bd2 {[%clk 0:02:47]}  Qxb3 {[%clk 0:02:54]} 12. axb3 {[%clk 0:02:48]}  a6 {[%clk 0:02:54]} 13. c5 {[%clk 0:02:44]}  h5 {[%clk 0:02:52]} 14. b4 {[%clk 0:02:41]}  Rc8 {[%clk 0:02:51]} 15. Kf2 {[%clk 0:02:38]}  h4 {[%clk 0:02:51]} 16. Be2 {[%clk 0:02:36]}  Bh6 {[%clk 0:02:48]} 17. gxh4 {[%clk 0:02:28]}  Ke7 {[%clk 0:02:48]} 18. Rag1 {[%clk 0:02:27]}  Nf8 {[%clk 0:02:45]} 19. f4 {[%clk 0:02:26]}  Rh7 {[%clk 0:02:40]} 20. Kf1 {[%clk 0:02:19]}  N8d7 {[%clk 0:02:39]} 21. Be1 {[%clk 0:02:17]}  Rch8 {[%clk 0:02:36]} 22. Bf3 {[%clk 0:02:13]}  Bg7 {[%clk 0:02:35]} 23. Rg5 {[%clk 0:02:09]}  Ne8 {[%clk 0:02:30]} 24. Ne2 {[%clk 0:01:54]}  Bf6 {[%clk 0:02:30]} 25. Kg2 {[%clk 0:01:49]}  Nf8 {[%clk 0:02:27]} 26. h5 {[%clk 0:01:41]}  Ng7 {[%clk 0:02:19]} 27. Bh4 {[%clk 0:01:23]}  Ke8 {[%clk 0:02:03]} 28. Ng3 {[%clk 0:01:15]}  Bxg5 {[%clk 0:02:03]} 29. Bxg5 {[%clk 0:00:48]}  Nd7 {[%clk 0:02:03]} 30. h6 {[%clk 0:00:44]}  Rxh6 {[%clk 0:02:03]} 31. Bxh6 {[%clk 0:00:41]}  Rxh6 {[%clk 0:02:04]} 32. Ra1 {[%clk 0:00:39]}  Ke7 {[%clk 0:01:59]} 33. Rh1 {[%clk 0:00:32]}  Ne8 {[%clk 0:01:56]} 34. h4 {[%clk 0:00:28]}  Ndf6 {[%clk 0:01:57]} 35. h5 {[%clk 0:00:27]}  Ng7 {[%clk 0:01:55]} 36. Rh2 {[%clk 0:00:27]}  Nge8 {[%clk 0:01:54]} 37. Rh1 {[%clk 0:00:27]}  Rh8 {[%clk 0:01:49]} 38. Kh3 {[%clk 0:00:27]}  Ng8 {[%clk 0:01:47]} 39. Kh4 {[%clk 0:00:27]}  Nef6 {[%clk 0:01:46]} 40. Ne2 {[%clk 0:00:24]}  Nh6 {[%clk 0:01:46]} 41. Ng3 {[%clk 0:00:14]}  Rg8 {[%clk 0:01:43]} 42. Rg1 {[%clk 0:00:11]}  Nhg4 {[%clk 0:01:41]} 43. Re1 {[%clk 0:00:04]}  Nh2 {[%clk 0:01:36]} 44. Bd1 {[%clk 0:00:04]}  Nhg4 {[%clk 0:01:28]} 45. Bf3 {[%clk 0:00:04]}  Kf8 {[%clk 0:01:27]} 46. Re2 {[%clk 0:00:04]}  Kg7 {[%clk 0:01:23]} 47. b3 {[%clk 0:00:04]}  Kh6 {[%clk 0:01:22]} 48. Re1 {[%clk 0:00:04]}  Nh2 {[%clk 0:01:21]} 49. Bd1 {[%clk 0:00:04]}  Ne4 {[%clk 0:01:16]} 50. Rg1 {[%clk 0:00:04]}  Nf2 {[%clk 0:01:13]} 51. Be2 {[%clk 0:00:04]}  Rg4+ {[%clk 0:01:09]} 52. Bxg4 {[%clk 0:00:04]}  fxg4 {[%clk 0:01:10]} 53. Ne2 {[%clk 0:00:02]}  Nf3+ {[%clk 0:01:10]} 54. Kg3 {[%clk 0:00:02]}  Nxg1 {[%clk 0:01:11]} 55. Nxg1 {[%clk 0:00:02]}  Nd1 {[%clk 0:01:10]} 56. Kxg4 {[%clk 0:00:02]}  Nxe3+ {[%clk 0:01:11]} 57. Kh3 {[%clk 0:00:02]}  Kxh5 {[%clk 0:01:09]} 58. Nf3 {[%clk 0:00:03]}  Nc2 {[%clk 0:01:08]} 59. Ne5 {[%clk 0:00:02]}  f5 {[%clk 0:01:08]} 60. Nd7 {[%clk 0:00:02]}  Nxd4 {[%clk 0:01:08]} 61. Kg3 {[%clk 0:00:03]}  Nc2 {[%clk 0:01:07]} 62. Nf8 {[%clk 0:00:02]}  Nxb4 {[%clk 0:01:07]} 63. Nxe6 {[%clk 0:00:02]}  Nd3 {[%clk 0:01:06]} 64. Kf3 {[%clk 0:00:02]}  a5 {[%clk 0:01:07]} 65. Ke3 {[%clk 0:00:02]}  Nc1 {[%clk 0:01:07]} 66. Nd4 {[%clk 0:00:02]}  Kg4 {[%clk 0:01:07]} 67. Kd2 {[%clk 0:00:01]}  Na2 {[%clk 0:01:07]} 68. Ne6 {[%clk 0:00:02]}  Nb4 {[%clk 0:01:06]} 69. Nd8 {[%clk 0:00:02]}  Kxf4 {[%clk 0:01:06]} 70. Nxb7 {[%clk 0:00:03]}  Kg3 {[%clk 0:01:04]} 71. Nxa5 {[%clk 0:00:03]}  f4 {[%clk 0:01:05]} 72. Kc3 {[%clk 0:00:03]}  f3 {[%clk 0:01:05]} 73. Kxb4 {[%clk 0:00:03]}  f2 {[%clk 0:01:05]} 74. Nxc6 {[%clk 0:00:04]}  f1=Q {[%clk 0:01:06]} 75. Nd4 {[%clk 0:00:03]}  Qd3 {[%clk 0:01:02]} 76. Nb5 {[%clk 0:00:03]}  Qd2+ {[%clk 0:01:00]} 0-1


[Site "https://www.chess.com"]

[Event "Titled Tuesday Blitz October 19 2021"]
[White "Sanal, Vahap"]
[Black "Demchenko, Anton"]
[WhiteFideId "6300545"]
[BlackFideId "4160258"]
[WhiteElo "2492"]
[BlackElo "2583"]
[Result "1-0"]
[Round "08"]
[TimeControl "180+1"]
[Date "2021.10.19"]
[WhiteClock "0:01:26"]
[BlackClock "0:00:01"]

1. e4 {[%clk 0:03:00]}  e5 {[%clk 0:02:59]} 2. Nc3 {[%clk 0:03:00]}  Nf6 {[%clk 0:02:58]} 3. Bc4 {[%clk 0:03:01]}  Nc6 {[%clk 0:02:57]} 4. d3 {[%clk 0:02:57]}  Bb4 {[%clk 0:02:58]} 5. Ne2 {[%clk 0:02:47]}  d5 {[%clk 0:02:57]} 6. exd5 {[%clk 0:02:48]}  Nxd5 {[%clk 0:02:58]} 7. O-O {[%clk 0:02:48]}  Be6 {[%clk 0:02:59]} 8. Bxd5 {[%clk 0:02:44]}  Bxd5 {[%clk 0:03:00]} 9. f4 {[%clk 0:02:44]}  f6 {[%clk 0:03:00]} 10. a3 {[%clk 0:02:38]}  Ba5 {[%clk 0:02:41]} 11. Kh1 {[%clk 0:02:37]}  Bf7 {[%clk 0:02:33]} 12. fxe5 {[%clk 0:02:37]}  Nxe5 {[%clk 0:02:32]} 13. d4 {[%clk 0:02:37]}  Ng6 {[%clk 0:02:19]} 14. b4 {[%clk 0:02:20]}  Bb6 {[%clk 0:02:19]} 15. Na4 {[%clk 0:02:13]}  O-O {[%clk 0:02:18]} 16. Nc5 {[%clk 0:02:13]}  Bc4 {[%clk 0:02:15]} 17. Rf2 {[%clk 0:02:07]}  Re8 {[%clk 0:02:12]} 18. Bb2 {[%clk 0:02:08]}  Bxc5 {[%clk 0:02:06]} 19. bxc5 {[%clk 0:02:07]}  Qd7 {[%clk 0:02:02]} 20. Ng3 {[%clk 0:02:05]}  Bd5 {[%clk 0:01:54]} 21. Qh5 {[%clk 0:02:03]}  Ne7 {[%clk 0:01:46]} 22. Raf1 {[%clk 0:02:01]}  b5 {[%clk 0:01:37]} 23. Bc1 {[%clk 0:01:59]}  Bc4 {[%clk 0:01:33]} 24. Rd1 {[%clk 0:01:57]}  Rad8 {[%clk 0:01:31]} 25. h3 {[%clk 0:01:57]}  Qd5 {[%clk 0:01:27]} 26. Qg4 {[%clk 0:01:54]}  Qd7 {[%clk 0:01:27]} 27. Qh5 {[%clk 0:01:53]}  a6 {[%clk 0:01:25]} 28. c3 {[%clk 0:01:51]}  a5 {[%clk 0:01:23]} 29. Bd2 {[%clk 0:01:48]}  a4 {[%clk 0:01:23]} 30. Re1 {[%clk 0:01:47]}  Bf7 {[%clk 0:01:16]} 31. Qf3 {[%clk 0:01:44]}  c6 {[%clk 0:01:09]} 32. Ne4 {[%clk 0:01:43]}  Bd5 {[%clk 0:01:02]} 33. Qg3 {[%clk 0:01:43]}  Bxe4 {[%clk 0:01:00]} 34. Rxe4 {[%clk 0:01:44]}  Nf5 {[%clk 0:00:55]} 35. Rxe8+ {[%clk 0:01:43]}  Rxe8 {[%clk 0:00:55]} 36. Qg4 {[%clk 0:01:44]}  g6 {[%clk 0:00:52]} 37. Qf4 {[%clk 0:01:43]}  Qd5 {[%clk 0:00:51]} 38. Kh2 {[%clk 0:01:43]}  Re6 {[%clk 0:00:40]} 39. Qb8+ {[%clk 0:01:41]}  Kg7 {[%clk 0:00:37]} 40. Qc7+ {[%clk 0:01:40]}  Re7 {[%clk 0:00:34]} 41. Qf4 {[%clk 0:01:41]}  h5 {[%clk 0:00:29]} 42. g4 {[%clk 0:01:38]}  hxg4 {[%clk 0:00:30]} 43. hxg4 {[%clk 0:01:39]}  Re4 {[%clk 0:00:30]} 44. Qf3 {[%clk 0:01:31]}  Ne7 {[%clk 0:00:06]} 45. Qxf6+ {[%clk 0:01:31]}  Kh7 {[%clk 0:00:07]} 46. Qh4+ {[%clk 0:01:30]}  Kg8 {[%clk 0:00:06]} 47. Bh6 {[%clk 0:01:29]}  g5 {[%clk 0:00:02]} 48. Rf8+ {[%clk 0:01:25]}  Kh7 {[%clk 0:00:01]} 49. Bxg5+ {[%clk 0:01:26]} 1-0


[Site "https://www.chess.com"]

[Event "Titled Tuesday Blitz October 19 2021"]
[White "Sjugirov, Sanan"]
[Black "Khanin, Semen"]
[WhiteFideId "4189302"]
[BlackFideId "4111990"]
[WhiteElo "2654"]
[BlackElo "2436"]
[Result "0-1"]
[Round "08"]
[TimeControl "180+1"]
[Date "2021.10.19"]
[WhiteClock "0:00:01"]
[BlackClock "0:00:16"]

1. d4 {[%clk 0:03:00]}  Nf6 {[%clk 0:02:58]} 2. c4 {[%clk 0:03:01]}  e6 {[%clk 0:02:58]} 3. Nc3 {[%clk 0:03:01]}  d5 {[%clk 0:02:57]} 4. cxd5 {[%clk 0:03:00]}  exd5 {[%clk 0:02:57]} 5. Bg5 {[%clk 0:03:00]}  c6 {[%clk 0:02:57]} 6. e3 {[%clk 0:03:00]}  Nbd7 {[%clk 0:02:57]} 7. Bd3 {[%clk 0:03:00]}  Bd6 {[%clk 0:02:57]} 8. Qc2 {[%clk 0:02:57]}  Nf8 {[%clk 0:02:57]} 9. f4 {[%clk 0:02:52]}  Ng6 {[%clk 0:02:51]} 10. Nf3 {[%clk 0:02:52]}  h6 {[%clk 0:02:22]} 11. Bxf6 {[%clk 0:02:39]}  Qxf6 {[%clk 0:02:21]} 12. Ne5 {[%clk 0:02:35]}  Nh4 {[%clk 0:02:20]} 13. O-O-O {[%clk 0:02:29]}  Bf5 {[%clk 0:02:16]} 14. g4 {[%clk 0:02:13]}  Bxd3 {[%clk 0:02:15]} 15. Qxd3 {[%clk 0:02:14]}  O-O-O {[%clk 0:02:05]} 16. Kb1 {[%clk 0:02:07]}  Kb8 {[%clk 0:02:05]} 17. Rhg1 {[%clk 0:01:56]}  g6 {[%clk 0:01:51]} 18. Rdf1 {[%clk 0:01:54]}  h5 {[%clk 0:01:48]} 19. h3 {[%clk 0:01:45]}  hxg4 {[%clk 0:01:48]} 20. hxg4 {[%clk 0:01:45]}  Qe6 {[%clk 0:01:37]} 21. Qe2 {[%clk 0:01:30]}  f6 {[%clk 0:01:36]} 22. Nd3 {[%clk 0:01:30]}  Rde8 {[%clk 0:01:31]} 23. Rg3 {[%clk 0:01:27]}  g5 {[%clk 0:01:30]} 24. f5 {[%clk 0:01:21]}  Qd7 {[%clk 0:01:24]} 25. Rgg1 {[%clk 0:01:11]}  Rh7 {[%clk 0:01:23]} 26. Qf2 {[%clk 0:01:06]}  Rhe7 {[%clk 0:01:23]} 27. Re1 {[%clk 0:01:07]}  Qc7 {[%clk 0:01:19]} 28. Re2 {[%clk 0:01:03]}  Qa5 {[%clk 0:01:16]} 29. Rc1 {[%clk 0:00:58]}  Qa6 {[%clk 0:01:12]} 30. Rd1 {[%clk 0:00:48]}  Qc4 {[%clk 0:00:59]} 31. Ree1 {[%clk 0:00:32]}  Qa6 {[%clk 0:00:35]} 32. Kc2 {[%clk 0:00:26]}  Qa5 {[%clk 0:00:31]} 33. a3 {[%clk 0:00:25]}  Qc7 {[%clk 0:00:31]} 34. Re2 {[%clk 0:00:16]}  Bg3 {[%clk 0:00:30]} 35. Qg1 {[%clk 0:00:16]}  Nf3 {[%clk 0:00:29]} 36. Qg2 {[%clk 0:00:16]}  Rxe3 {[%clk 0:00:29]} 37. Rxe3 {[%clk 0:00:09]}  Rxe3 {[%clk 0:00:29]} 38. Kb1 {[%clk 0:00:10]}  Nxd4 {[%clk 0:00:27]} 39. Nc5 {[%clk 0:00:10]}  Be5 {[%clk 0:00:21]} 40. Qh1 {[%clk 0:00:09]}  a6 {[%clk 0:00:20]} 41. Qh8+ {[%clk 0:00:02]}  Ka7 {[%clk 0:00:20]} 42. Qf8 {[%clk 0:00:02]}  Rxc3 {[%clk 0:00:18]} 43. bxc3 {[%clk 0:00:01]}  Qb6+ {[%clk 0:00:18]} 44. Ka2 {[%clk 0:00:01]}  Ne2 {[%clk 0:00:16]} 0-1


[Site "https://www.chess.com"]